bitfinex/quotes_ETHUSD_20260208
["timestamp","ask_amount","ask_price","bid_price","bid_amount"]
[1770592266647,1.17641522,2125.1,2123.7,4.46518213]
[1770592266814,0.05243089,2125.0,2123.7,4.46518213]
[1770592267010,0.05243089,2124.7,2123.7,3.288]
[1770592267223,0.05243089,2125.0,2123.7,4.46518822]
[1770592267403,1.17641522,2125.1,2123.7,4.46518822]
[1770592267608,0.05243089,2125.0,2123.7,4.46518822]
[1770592268104,0.05243089,2125.0,2123.7,4.46518184]
[1770592268531,4.70566091,2125.4,2123.7,4.46518184]
[1770592268532,1.17619383,2125.5,2123.8,0.96302268]
[1770592268737,0.05243089,2125.3,2123.8,0.96302268]
[1770592268937,1.22970421,2125.6,2123.8,0.96302268]
[1770592269237,0.05243089,2124.9,2123.7,1.17818184]
[1770592269437,1.22970421,2125.6,2123.7,1.17818184]
[1770592269635,0.05243089,2125.2,2123.8,0.96302268]
[1770592269842,1.22970421,2125.6,2123.8,0.96302268]
[1770592270041,0.05243089,2125.2,2123.8,0.96302268]
[1770592270253,1.17727332,2125.6,2123.8,0.96302268]
[1770592270415,1.22970421,2125.6,2124.0,0.96302268]
[1770592270606,1.17727332,2125.6,2124.0,0.96302268]
[1770592271006,0.0011,2125.6,2124.0,1.01545357]
[1770592271243,1.22822005,2126.3,2124.6,0.96302268]
[1770592271451,1.22822005,2126.3,2124.6,4.25102268]
[1770592271645,0.05243089,2126.4,2124.7,0.96302268]
[1770592271845,1.17558544,2126.6,2124.7,0.96302268]
[1770592272161,0.05243089,2126.1,2124.7,0.96302268]
[1770592272448,1.17591721,2126.0,2124.8,1.17658132]
[1770592272848,0.05243089,2126.4,2124.8,1.17658132]
[1770592273145,1.1757513,2126.3,2124.9,0.96302268]
[1770592273434,1.22818219,2126.3,2124.9,0.96302268]
[1770592273626,1.175714,2126.4,2124.9,0.96302268]
[1770592273831,1.22814489,2126.4,2124.9,0.96302268]
[1770592274143,0.05243089,2127.3,2125.0,1.06542268]
[1770592274314,0.05243089,2127.3,2125.5,0.96302268]
[1770592274517,1.17514336,2127.4,2125.7,0.96302268]
[1770592274726,0.05243089,2127.2,2125.8,3.288]
[1770592274927,0.05243089,2126.3,2125.3,1.17629496]
[1770592275150,0.05243089,2126.2,2124.9,5.69295738]
[1770592275349,0.05243089,2126.5,2124.9,0.98690111]
[1770592275638,0.05243089,2126.5,2124.7,3.288]
[1770592275639,0.05243089,2126.1,2124.8,4.70622022]
[1770592275841,0.05243089,2126.5,2124.7,3.288]
[1770592275842,0.05243089,2126.5,2125.5,1.17618106]
[1770592276047,0.05243089,2126.8,2125.1,0.96525163]
[1770592276235,11.37037466,2127.4,2125.6,0.96525163]
[1770592276236,0.05243089,2127.0,2125.6,0.96525163]
[1770592276441,0.05243089,2127.2,2125.6,0.96525163]
[1770592276646,1.17547489,2126.8,2125.6,2.14138184]
[1770592276811,0.05243089,2126.6,2125.5,1.17617487]
[1770592277013,1.17547489,2126.8,2125.6,1.17613814]
[1770592277248,0.05243089,2126.6,2125.6,1.17613814]
[1770592277777,0.0011,2126.1,2125.6,1.17613814]
[1770592278180,0.05243089,2127.2,2125.7,0.96525163]
[1770592278348,1.22751902,2127.5,2125.7,0.96525163]
[1770592278544,1.22751902,2127.5,2124.9,1.17649596]
[1770592278545,0.05243089,2126.2,2124.9,1.17649596]
[1770592278748,0.05243089,2125.9,2124.5,0.96525163]
[1770592278972,0.05243089,2125.6,2124.7,1.17662892]
[1770592279246,0.05243089,2125.6,2124.8,1.17656078]
[1770592279442,0.05243089,2125.6,2124.3,0.001]
[1770592279443,0.05243089,2125.3,2124.3,0.001]
[1770592279646,0.05243089,2125.6,2124.3,1.17785417]
[1770592279647,0.05243089,2125.2,2124.3,1.17785417]
[1770592279869,0.05243089,2124.8,2124.3,0.001]
[1770592280084,0.05243089,2125.3,2124.3,0.001]
[1770592280245,0.05243089,2124.9,2124.3,0.001]
[1770592280451,0.05243089,2125.3,2124.3,0.001]
[1770592280651,0.05243089,2125.0,2124.3,0.001]
[1770592280946,0.05243089,2124.7,2124.3,0.001]
[1770592281261,0.05243089,2124.7,2124.0,0.001]
[1770592281262,0.05243089,2124.6,2124.0,0.001]
[1770592281454,0.05243089,2124.3,2123.7,0.001]
[1770592281658,1.17635987,2125.2,2123.7,0.96625163]
[1770592281856,0.05243089,2125.8,2124.3,0.96525163]
[1770592282088,0.05243089,2125.4,2124.3,4.25325163]
[1770592282288,0.05243089,2125.3,2124.3,3.288]
[1770592282664,0.05243089,2125.0,2123.9,1.17704276]
[1770592282864,4.70411139,2125.9,2124.3,1.17681838]
[1770592283084,0.05243089,2125.1,2124.2,1.17690838]
[1770592283289,0.05243089,2125.5,2124.3,1.17682895]
[1770592283482,0.05243089,2125.2,2124.3,1.17682895]
[1770592283690,0.05243089,2125.5,2124.3,1.17682895]
[1770592283877,0.05243089,2125.2,2124.3,1.17682895]
[1770592284079,0.05243089,2125.2,2124.3,1.17685638]
[1770592284284,4.70411139,2125.9,2124.3,1.17685638]
[1770592284482,0.05243089,2125.7,2124.3,1.17685638]
[1770592284697,0.05243089,2125.3,2123.9,4.70827595]
[1770592284891,1.1761385,2125.6,2124.0,0.96525163]
[1770592285483,0.05243089,2124.8,2123.8,1.17710342]
[1770592285988,0.05243089,2125.1,2123.8,1.17710342]
[1770592286171,0.05243089,2125.1,2123.8,1.1762081]
[1770592286566,0.05243089,2125.4,2123.9,0.96525163]
[1770592286792,1.22871776,2125.4,2123.9,0.96525163]
[1770592286996,0.05243089,2125.7,2123.9,0.96525163]
[1770592287208,0.05243089,2125.4,2123.9,0.96525163]
[1770592287510,1.1761385,2125.6,2123.9,0.96525163]
[1770592287716,1.22823749,2126.2,2124.0,0.1024]
[1770592287873,0.05243089,2125.6,2124.2,0.96525163]
[1770592288280,0.05243089,2125.5,2124.2,0.96525163]
[1770592288614,0.05243089,2125.5,2123.7,4.70954129]
[1770592288615,0.05243089,2125.2,2123.7,5.67479292]
[1770592288775,1.22880777,2125.2,2123.7,5.67479292]
[1770592289200,0.05243089,2125.5,2123.8,0.96525163]
[1770592289702,0.05243089,2125.5,2124.0,0.96525163]
[1770592290107,0.05243089,2125.4,2124.0,0.96525163]
[1770592290274,1.22849959,2125.8,2124.0,0.96525163]
[1770592290472,0.05243089,2125.5,2124.0,0.96525163]
[1770592290704,1.22849959,2125.8,2124.0,0.96525163]
[1770592290900,0.05243089,2125.5,2124.1,2.14222069]
[1770592291199,0.0011,2125.0,2124.2,0.96525163]
[1770592291804,0.0011,2125.0,2124.1,1.17696906]
[1770592292713,0.05243089,2124.9,2124.0,4.46499519]
[1770592292889,1.17654749,2124.9,2124.0,4.46500612]
[1770592293107,0.0011,2125.0,2124.1,0.96525163]
[1770592293419,0.0011,2125.0,2124.0,5.43025775]
[1770592293581,0.0011,2125.0,2124.0,3.288]
[1770592293582,0.05243089,2124.9,2124.0,3.288]
[1770592294119,0.05243089,2124.9,2124.0,4.46502279]
[1770592294610,1.17760143,2125.0,2124.0,4.46502279]
[1770592294777,1.17658132,2124.8,2124.0,4.46502279]
[1770592294983,1.17759929,2125.0,2124.0,4.46502279]
[1770592295184,1.17757319,2125.0,2124.0,4.46502279]
[1770592295509,1.1775764,2125.0,2124.0,4.46502279]
[1770592295709,0.05243089,2124.8,2124.0,4.46502279]
[1770592296009,0.05243089,2124.5,2123.9,0.001]
[1770592296712,0.05243089,2124.2,2123.9,0.001]
[1770592297008,1.17680286,2124.4,2123.9,0.001]
[1770592297221,1.17656496,2124.9,2123.9,0.001]
[1770592297426,0.05243089,2124.4,2123.9,0.001]
[1770592297622,0.05243089,2124.7,2123.9,0.001]
[1770592297829,1.22899585,2124.9,2123.9,0.001]
[1770592298123,1.17757775,2125.0,2123.9,0.001]
[1770592298497,0.05243089,2124.3,2123.7,0.001]
[1770592298707,0.05243089,2124.6,2123.7,0.001]
[1770592298919,1.22949268,2124.0,2123.7,0.001]
[1770592299223,0.05243089,2124.3,2123.7,0.001]
[1770592299401,0.05243089,2124.0,2123.7,0.001]
[1770592299821,0.05243089,2124.0,2123.2,4.71084469]
[1770592299822,0.05243089,2123.5,2123.2,0.001]
[1770592300006,0.05243089,2123.5,2122.8,0.001]
[1770592300007,0.05243089,2123.7,2122.9,1.17762125]
[1770592300209,0.05243089,2123.6,2122.9,1.17760373]
[1770592300406,0.05243089,2123.6,2122.8,1.17864927]
[1770592300921,1.17730162,2123.5,2122.8,0.001]
[1770592301125,0.05243089,2123.3,2122.8,0.001]
[1770592301425,4.76163738,2123.6,2122.8,0.001]
[1770592301426,1.22971915,2123.6,2122.8,0.001]
[1770592301803,0.05243089,2123.3,2122.8,0.001]
[1770592302127,0.05243089,2122.5,2122.4,0.001]
[1770592302329,0.05243089,2122.5,2121.9,0.001]
[1770592302530,0.05243089,2122.5,2121.7,4.71304795]
[1770592302531,0.05243089,2122.2,2121.1,1.17863372]
[1770592303028,0.05243089,2122.6,2120.9,4.71453491]
[1770592303201,0.05243089,2122.1,2120.8,1.17880045]
[1770592303400,0.05243089,2121.8,2120.8,1.17880045]
[1770592303950,1.17774532,2122.7,2121.0,0.96525163]
[1770592304240,1.17735706,2123.5,2121.5,0.1024]
[1770592304395,0.05243089,2123.5,2121.8,0.96525163]
[1770592304602,0.05243089,2123.5,2121.6,3.29]
[1770592304603,1.17702448,2124.0,2122.6,0.001]
[1770592305120,0.05243089,2123.8,2122.6,0.001]
[1770592305319,1.17798704,2124.3,2122.8,1.48156737]
[1770592305497,0.05243089,2124.1,2122.8,1.48156737]
[1770592305699,0.05243089,2123.8,2122.8,0.5]
[1770592305902,0.05243089,2123.5,2122.6,0.001]
[1770592306406,0.05243089,2124.1,2122.6,0.98256737]
[1770592306598,0.05243089,2124.0,2122.6,0.001]
[1770592306798,0.05243089,2123.7,2122.6,0.001]
[1770592307105,0.05243089,2123.4,2122.6,0.001]
[1770592307302,0.05243089,2123.1,2122.6,0.001]
[1770592307510,0.05243089,2122.7,2121.7,1.17826494]
[1770592307815,0.05243089,2121.9,2120.9,3.29]
[1770592308014,0.05243089,2122.1,2121.0,4.71456439]
[1770592308215,0.05243089,2122.7,2121.0,4.71456439]
[1770592308414,0.1024,2123.4,2121.1,1.03399826]
[1770592308721,0.05243089,2123.4,2121.6,1.08396737]
[1770592308921,0.05243089,2123.1,2121.6,1.08396737]
[1770592309127,0.05243089,2123.8,2122.3,0.98156737]
[1770592309322,0.05243089,2123.5,2121.8,0.1024]
[1770592309528,0.05243089,2123.4,2121.9,4.27256737]
[1770592310035,0.05243089,2123.1,2121.9,4.27256737]
[1770592310208,0.05243089,2123.1,2121.9,3.291]
[1770592310402,0.05243089,2124.0,2121.9,3.291]
[1770592310602,0.05243089,2123.3,2121.9,4.27256737]
[1770592310837,0.05243089,2123.6,2121.9,4.27256737]
[1770592311026,0.05243089,2123.6,2122.0,1.17813383]
[1770592311027,1.17730162,2123.5,2122.0,1.17813383]
[1770592311235,1.22934455,2124.2,2122.2,1.08396737]
[1770592311411,0.05243089,2123.9,2122.2,1.08396737]
[1770592311745,1.22934455,2124.2,2122.4,0.98156737]
[1770592311914,0.05243089,2123.9,2122.4,0.98156737]
[1770592312112,0.05243089,2123.8,2122.3,3.291]
[1770592312336,0.05243089,2123.8,2122.4,0.1024]
[1770592312522,0.05243089,2123.7,2122.4,0.98156737]
[1770592312725,1.22934455,2124.2,2122.4,0.98156737]
[1770592313020,1.22934455,2124.2,2122.5,1.1778563]
[1770592313238,0.05243089,2123.9,2122.5,2.15942367]
[1770592313536,0.05243089,2123.8,2122.5,2.15942367]
[1770592314045,0.05243089,2123.7,2122.5,2.15942367]
[1770592314406,1.17691366,2124.2,2122.6,0.98156737]
[1770592314715,0.05243089,2123.7,2122.5,1.1778563]
[1770592314916,0.05243089,2124.0,2122.5,1.1778563]
[1770592315118,1.17713831,2123.8,2122.4,4.7114252]
[1770592315315,0.05243089,2123.7,2122.4,4.7114252]
[1770592315523,4.70769591,2124.2,2122.4,5.69299257]
[1770592315734,0.05243089,2124.0,2122.6,1.08396737]
[1770592315919,1.17691366,2124.2,2122.6,1.08396737]
[1770592316322,0.05243089,2123.8,2122.4,4.7114252]
[1770592316518,0.05243089,2123.5,2122.4,4.7114252]
[1770592317021,0.05353089,2123.5,2122.4,4.7114252]
[1770592317221,1.23086562,2123.5,2122.4,4.7114252]
[1770592317634,0.05353089,2123.5,2122.4,4.7114252]
[1770592317844,1.23085347,2123.5,2122.4,4.7114252]
[1770592318148,0.0011,2123.5,2122.4,4.7114252]
[1770592318467,0.0011,2123.5,2122.4,5.69299257]
[1770592318615,0.0011,2123.5,2122.6,1.48156737]
[1770592318936,1.23039512,2124.3,2122.7,1.08396737]
[1770592318937,0.05243089,2124.2,2122.7,1.08396737]
[1770592319137,0.0011,2124.3,2122.7,1.08396737]
[1770592319338,0.0011,2124.3,2122.9,0.98156737]
[1770592319522,0.0011,2124.3,2123.0,1.08396737]
[1770592319740,0.0011,2124.5,2123.4,1.08396737]
[1770592319933,0.0011,2125.0,2123.8,1.08396737]
[1770592320132,0.0011,2125.0,2124.1,0.98156737]
[1770592321230,0.0011,2125.0,2124.2,1.17691366]
[1770592321753,0.0011,2125.4,2124.2,2.15848103]
[1770592321934,0.0011,2125.4,2124.2,1.17691366]
[1770592322136,0.05353089,2125.4,2124.2,1.17691366]
[1770592322343,0.05243089,2125.3,2124.2,4.46791366]
[1770592322536,0.05243089,2125.1,2124.2,4.46791366]
[1770592322735,0.05353089,2125.4,2124.2,4.46791366]
[1770592323250,1.17658132,2124.8,2124.2,3.291]
[1770592323757,0.05243089,2124.9,2124.2,3.291]
[1770592324061,0.05243089,2124.6,2124.2,3.291]
[1770592324267,0.05243089,2124.0,2122.7,4.71082211]
[1770592324558,0.05243089,2124.3,2122.8,3.29]
[1770592324559,0.05243089,2123.9,2122.8,3.29]
[1770592324763,0.05243089,2123.8,2122.8,3.29]
[1770592325137,0.05243089,2124.3,2122.9,0.5]
[1770592325448,1.1770799,2123.9,2122.9,1.17763436]
[1770592325631,0.05243089,2124.6,2122.9,1.17763436]
[1770592325837,0.05243089,2124.0,2122.9,1.17763436]
[1770592326038,0.05243089,2124.6,2122.9,2.15920173]
[1770592326262,0.05243089,2124.9,2123.2,0.98156737]
[1770592326263,1.22898737,2124.9,2123.2,0.98156737]
[1770592327263,0.05243089,2124.9,2123.4,0.1024]
[1770592327470,1.22898995,2124.9,2123.5,1.17730162]
[1770592328343,0.0011,2125.2,2123.7,10.601847]
[1770592328542,0.0011,2125.2,2124.2,0.1024]
[1770592328742,0.0011,2125.2,2124.1,0.98156737]
[1770592328743,0.0011,2125.2,2124.3,3.29]
[1770592329363,0.0011,2125.2,2124.4,1.17680286]
[1770592329562,0.0011,2126.1,2124.5,0.98156737]
[1770592329739,0.0011,2126.1,2124.4,1.17680286]
[1770592329740,0.05243089,2125.8,2124.4,1.17680286]
[1770592329941,0.0011,2124.4,2124.2,4.46687093]
[1770592330274,0.0011,2124.6,2124.2,4.46687738]
[1770592330573,0.0011,2124.6,2124.3,1.17685237]
[1770592331253,0.05353089,2125.5,2124.3,1.17685237]
[1770592331564,1.22973022,2125.5,2124.3,1.17685237]
[1770592331947,0.05353089,2125.4,2124.3,1.17685237]
[1770592332146,0.0011,2125.5,2124.3,1.17685237]
[1770592332649,0.0011,2125.5,2124.3,2.15841974]
[1770592332981,0.05243089,2125.4,2124.4,3.289]
[1770592333145,0.05243089,2125.3,2124.4,3.289]
[1770592333347,0.05243089,2125.4,2124.4,3.289]
[1770592333573,0.05243089,2125.4,2124.5,1.17674746]
[1770592333844,1.22973001,2125.5,2124.5,1.17674746]
[1770592334369,1.22973048,2125.5,2124.5,1.17674746]
[1770592334679,0.0011,2125.5,2124.5,1.17674746]
[1770592335083,0.05243089,2124.8,2123.6,0.1024]
[1770592335252,0.05243089,2124.7,2123.9,1.17704452]
[1770592335451,0.05243089,2124.6,2123.8,1.17713356]
[1770592335655,0.05243089,2124.8,2123.8,1.17713532]
[1770592335864,1.17647058,2125.0,2123.8,1.17713532]
[1770592336076,0.05243089,2124.8,2123.8,1.17713532]
[1770592336250,0.05243089,2124.7,2123.8,1.17713532]
[1770592336578,10.24445745,2126.3,2123.8,1.17713532]
[1770592336745,1.22868006,2125.4,2123.8,1.17713532]
[1770592336945,0.05243089,2125.4,2123.8,1.17713532]
[1770592337144,0.05353089,2125.5,2123.9,5.89558855]
[1770592337362,0.0011,2125.5,2124.0,0.96258855]
[1770592337689,0.0011,2125.5,2124.2,0.96258855]
[1770592337980,0.0011,2125.5,2124.4,0.96258855]
[1770592338278,0.05243089,2125.4,2124.1,1.17696906]
[1770592338450,0.05243089,2125.4,2122.9,0.96258855]
[1770592338451,0.05243089,2124.7,2122.9,0.96258855]
[1770592338650,0.05243089,2124.7,2123.8,1.1771287]
[1770592338883,0.05243089,2124.7,2123.7,1.17719075]
[1770592339092,0.05243089,2124.4,2123.6,1.1772346]
[1770592339251,0.05243089,2124.4,2123.4,4.7093845]
[1770592339451,0.05243089,2124.3,2123.6,1.17723969]
[1770592339672,0.05243089,2124.7,2123.0,3.289]
[1770592339673,1.17669208,2124.6,2123.2,4.7098367]
[1770592340081,0.05243089,2124.4,2123.2,4.7098367]
[1770592340387,0.05243089,2124.1,2123.4,0.5]
[1770592340680,0.05243089,2124.1,2122.5,3.289]
[1770592340681,0.05243089,2123.8,2122.5,3.289]
[1770592340872,0.05243089,2123.5,2122.9,1.1775949]
[1770592341070,0.05243089,2123.4,2122.5,4.46683993]
[1770592341266,0.05243089,2123.4,2122.5,4.466847]
[1770592341464,0.05243089,2123.4,2122.5,3.289]
[1770592341787,1.17757889,2123.0,2122.5,3.289]
[1770592341972,0.05243089,2122.8,2122.1,0.001]
[1770592342276,0.05243089,2122.8,2121.9,0.001]
[1770592342277,0.05243089,2122.5,2121.9,0.001]
[1770592342481,0.05243089,2122.7,2121.9,0.001]
[1770592342790,0.05243089,2123.1,2122.0,0.001]
[1770592342950,0.05243089,2123.0,2122.0,0.001]
[1770592343284,0.05243089,2122.4,2122.0,0.001]
[1770592343490,0.05243089,2122.1,2121.9,0.001]
[1770592343655,0.05243089,2122.0,2121.2,3.289]
[1770592344153,0.05243089,2122.0,2121.2,4.46757236]
[1770592344354,0.05243089,2121.7,2121.2,3.289]
[1770592344565,1.17768984,2122.8,2121.2,4.46757136]
[1770592344784,0.05243089,2122.4,2121.1,1.17860029]
[1770592344987,2.11189999,2122.8,2121.2,1.17855318]
[1770592345194,0.05243089,2122.4,2121.2,1.17855318]
[1770592345490,0.05243089,2122.1,2121.1,3.29]
[1770592345671,1.17830041,2121.7,2121.0,0.001]
[1770592345871,4.71279311,2121.9,2121.0,0.001]
[1770592346076,0.05243089,2121.5,2121.0,0.001]
[1770592346281,0.05243089,2121.4,2121.0,0.001]
[1770592346579,0.05243089,2121.1,2120.2,3.29]
[1770592346783,0.05243089,2120.8,2120.2,3.29]
[1770592346996,0.05243089,2121.1,2120.2,3.29]
[1770592347177,0.05243089,2121.5,2120.3,10.24445745]
[1770592347378,0.05243089,2121.4,2120.1,1.17918966]
[1770592347578,1.23110828,2121.1,2120.1,1.17918966]
[1770592347894,1.23101645,2121.2,2120.1,1.17918966]
[1770592348069,0.15483089,2121.7,2120.1,1.17918966]
[1770592348070,0.05243089,2121.1,2120.1,1.17918966]
[1770592348270,0.05243089,2121.1,2119.3,0.1394697]
[1770592348271,0.05243089,2120.1,2119.3,0.1394697]
[1770592348471,0.05243089,2120.0,2119.3,0.1394697]
[1770592348991,0.05243089,2119.9,2119.0,1.17975764]
[1770592349192,0.05243089,2119.3,2118.7,3.29350852]
[1770592349399,0.05243089,2119.0,2118.7,0.00250852]
[1770592349581,0.05243089,2119.3,2118.7,0.00250852]
[1770592349893,1.23224231,2119.0,2117.9,1.18041456]
[1770592350095,1.23224231,2119.0,2117.8,4.47244315]
[1770592350096,0.05243089,2118.6,2117.8,4.47244315]
[1770592350273,0.05243089,2118.6,2115.3,1.41821327]
[1770592350274,0.05243089,2118.3,2116.7,0.96258855]
[1770592350480,0.05243089,2117.9,2117.4,1.18065348]
[1770592350687,0.05243089,2117.6,2116.7,1.18108376]
[1770592350876,0.05243089,2117.3,2116.7,1.18108376]
[1770592351078,0.05243089,2116.9,2115.3,4.72732514]
[1770592351310,0.05243089,2116.9,2115.8,1.18155264]
[1770592351311,0.05243089,2116.3,2115.8,1.18155264]
[1770592351484,0.05243089,2117.1,2115.8,1.18158264]
[1770592351824,0.05243089,2117.7,2116.1,0.1024]
[1770592351972,0.05243089,2118.9,2116.5,0.96258855]
[1770592351973,0.98664104,2118.9,2116.5,0.96258855]
[1770592352172,0.05243089,2118.3,2116.7,0.96258855]
[1770592352391,0.05243089,2118.0,2116.6,3.293]
[1770592352590,0.05243089,2117.7,2116.1,0.96258855]
[1770592353092,0.05243089,2118.3,2116.5,0.96258855]
[1770592353292,0.05243089,2118.2,2116.6,0.1024]
[1770592353524,0.05243089,2118.0,2116.0,0.96258855]
[1770592353834,0.05243089,2118.5,2116.8,1.06498855]
[1770592354034,0.05243089,2119.2,2117.4,0.96258855]
[1770592354324,0.05243089,2119.4,2117.9,0.96258855]
[1770592354502,1.17935654,2119.8,2117.9,0.96258855]
[1770592354503,0.05243089,2119.3,2117.9,0.96258855]
[1770592354818,0.05243089,2119.2,2117.7,0.96258855]
[1770592354990,0.05243089,2119.1,2118.0,3.295]
[1770592355187,0.05243089,2119.0,2117.7,0.96258855]
[1770592355392,0.05243089,2119.0,2116.9,0.001]
[1770592355393,0.05243089,2118.4,2117.1,0.96258855]
[1770592355608,0.05243089,2117.8,2116.9,0.001]
[1770592355820,0.05243089,2117.7,2116.9,0.001]
[1770592356119,0.05243089,2118.3,2116.9,0.001]
[1770592356319,0.05243089,2118.7,2116.9,0.001]
[1770592356320,0.05243089,2118.4,2116.9,0.001]
[1770592356523,0.05243089,2118.1,2116.9,0.001]
[1770592356693,1.23241331,2118.7,2116.9,0.96358855]
[1770592356894,0.1024,2119.1,2116.9,0.96358855]
[1770592356895,0.05243089,2119.2,2117.1,0.96258855]
[1770592357101,0.05243089,2118.9,2117.3,3.72558855]
[1770592357307,0.05243089,2118.8,2117.3,0.96258855]
[1770592357510,0.05243089,2119.2,2117.6,0.96258855]
[1770592357710,0.05243089,2119.8,2117.9,1.18041456]
[1770592357931,0.05243089,2119.5,2118.1,0.1024]
[1770592358098,0.05243089,2120.2,2118.5,10.32058532]
[1770592358303,0.05243089,2120.2,2118.1,1.06498855]
[1770592358304,0.05243089,2119.2,2118.1,0.96258855]
[1770592358500,0.05243089,2118.3,2117.9,1.18041456]
[1770592358721,0.05243089,2118.9,2117.9,1.18041456]
[1770592359031,0.05243089,2118.8,2117.9,1.18041456]
[1770592359205,0.05243089,2119.2,2117.9,1.18041456]
[1770592359399,0.05243089,2118.6,2117.9,1.18041456]
[1770592359718,0.05243089,2118.9,2117.2,4.72312871]
[1770592359915,0.05243089,2118.3,2117.2,4.72312871]
[1770592360116,0.05243089,2118.6,2117.0,1.18091639]
[1770592360117,0.05243089,2117.9,2117.0,1.18091639]
[1770592360426,0.05243089,2117.3,2116.9,1.18193413]
[1770592360636,0.05243089,2117.6,2116.9,1.18193413]
[1770592360853,0.05243089,2117.2,2116.6,0.001]
[1770592361129,0.05243089,2116.9,2116.3,1.18128791]
[1770592361337,0.05243089,2117.2,2116.6,1.1811035]
[1770592361502,0.05243089,2117.2,2115.8,0.001]
[1770592361503,0.05243089,2116.7,2115.8,1.18254743]
[1770592361704,0.05243089,2116.4,2115.8,0.001]
[1770592361903,0.05243089,2116.1,2115.8,0.001]
[1770592362103,0.05243089,2116.1,2115.1,1.32140856]
[1770592362331,0.05243089,2115.7,2115.1,0.1394697]
[1770592362504,1.23368589,2116.4,2115.1,0.1394697]
[1770592362505,0.05243089,2116.4,2115.1,1.32142238]
[1770592362715,0.05243089,2116.3,2115.1,1.32142238]
[1770592363006,0.05243089,2116.2,2115.1,1.32142238]
[1770592363223,0.05243089,2116.1,2115.1,1.32142238]
[1770592363432,0.05243089,2116.1,2115.1,1.32144174]
[1770592363433,0.05243089,2115.8,2115.1,1.32144174]
[1770592363731,0.05243089,2116.0,2115.1,1.32144174]
[1770592363956,0.05243089,2115.9,2115.1,1.32144174]
[1770592364107,0.05243089,2115.8,2115.1,1.32144108]
[1770592364461,0.05243089,2116.2,2115.1,1.32144108]
[1770592364638,0.05243089,2116.3,2115.1,1.32144108]
[1770592365011,0.05243089,2116.8,2115.1,1.32144108]
[1770592365216,0.05243089,2117.1,2115.3,0.96594218]
[1770592365516,0.05243089,2117.0,2115.3,11.2865275]
[1770592365847,0.05243089,2117.0,2115.4,4.48080958]
[1770592366059,0.05243089,2117.2,2115.4,5.44675176]
[1770592366225,0.05243089,2117.5,2116.0,0.96594218]
[1770592366428,0.05243089,2117.1,2115.4,5.44675176]
[1770592366741,0.05243089,2116.8,2115.4,5.44675176]
[1770592366914,0.05243089,2116.7,2115.4,5.44675176]
[1770592367118,0.05243089,2117.4,2115.9,0.96594218]
[1770592367338,0.95681448,2118.1,2115.6,11.3889275]
[1770592367542,0.05243089,2117.3,2115.6,11.2865275]
[1770592367756,0.05243089,2117.0,2115.6,11.2865275]
[1770592368037,4.82392403,2118.0,2115.7,1.181642]
[1770592368237,0.05243089,2117.3,2115.7,1.181642]
[1770592368467,0.05243089,2117.3,2115.8,0.96594218]
[1770592368670,0.05243089,2116.9,2115.7,1.181642]
[1770592368967,0.05243089,2117.3,2115.7,2.14758418]
[1770592369181,0.05243089,2117.6,2115.7,2.14758418]
[1770592369467,0.05243089,2118.0,2116.3,0.96594218]
[1770592369644,0.0011,2118.1,2116.5,11.2865275]
[1770592369963,0.0011,2118.1,2117.1,1.18086061]
[1770592370168,1.23234404,2118.8,2117.3,0.96594218]
[1770592370372,1.23324762,2119.2,2117.5,10.32058532]
[1770592370570,1.18081198,2119.2,2117.7,2.528897]
[1770592370786,0.0011,2119.2,2117.7,0.96594218]
[1770592371090,1.18080119,2119.2,2117.8,1.06834218]
[1770592371276,0.05243089,2119.1,2117.7,3.3]
[1770592371640,0.0011,2119.2,2117.9,0.96594218]
[1770592371840,1.18080239,2119.2,2117.9,0.96594218]
[1770592372052,1.18080239,2119.2,2118.0,2.146301]
[1770592372053,0.0011,2119.2,2118.0,2.146301]
[1770592372471,0.0011,2119.2,2117.5,10.32058532]
[1770592372472,0.05243089,2119.1,2117.5,10.32058532]
[1770592372646,0.0011,2119.2,2117.9,1.180414]
[1770592372970,0.05243089,2119.0,2117.9,1.180414]
[1770592373159,0.0011,2119.2,2117.9,1.180414]
[1770592373367,0.0011,2119.2,2117.9,12.4669415]
[1770592373595,0.0011,2119.2,2118.1,0.96594218]
[1770592374143,1.65999942,2118.3,2118.2,1.18024737]
[1770592374347,6.63999768,2118.8,2118.2,1.18024737]
[1770592374547,3.31999884,2118.8,2118.3,3.299]
[1770592374941,5.1459982,2119.1,2118.3,3.299]
[1770592375146,4.98983803,2119.1,2118.3,3.299]
[1770592375449,4.95692566,2119.1,2118.3,3.299]
[1770592375677,5.80999797,2119.4,2118.3,3.299]
[1770592376288,4.14999855,2119.9,2118.2,1.18020691]
[1770592376289,0.05243089,2119.3,2118.2,1.18020691]
[1770592376569,0.05243089,2119.0,2118.1,3.299]
[1770592376779,0.05243089,2119.0,2118.1,4.47929813]
[1770592376980,0.05243089,2118.7,2118.1,3.299]
[1770592377158,4.14999855,2118.8,2117.9,1.18037962]
[1770592377342,0.05243089,2119.0,2117.4,3.299]
[1770592377343,4.14999855,2118.7,2117.4,3.299]
[1770592377547,4.14999855,2119.0,2118.2,1.18022632]
[1770592377765,4.14999855,2119.2,2118.2,1.18022632]
[1770592377952,4.20242944,2119.1,2117.5,10.32058532]
[1770592378151,4.20242944,2119.1,2117.5,1.18063754]
[1770592378152,0.05243089,2118.8,2117.5,1.18063754]
[1770592378372,0.05243089,2118.5,2117.5,1.18063754]
[1770592378676,0.05243089,2118.8,2117.4,4.47965497]
[1770592378677,4.14999855,2118.4,2117.4,4.47965497]
[1770592378879,4.20242944,2118.3,2117.4,3.299]
[1770592379179,4.14999855,2118.1,2117.4,4.47967944]
[1770592379383,4.14999855,2118.1,2117.4,4.47967095]
[1770592379548,4.14999855,2118.3,2117.4,4.47967095]
[1770592379755,4.7193427,2119.0,2117.4,4.47967095]
[1770592379756,4.14999855,2118.6,2117.4,4.47967095]
[1770592380052,4.14999855,2118.7,2117.4,4.47967095]
[1770592380268,9.98891151,2119.0,2117.6,1.18158179]
[1770592380449,1.17966724,2119.3,2117.7,0.1024]
[1770592380771,0.05353089,2119.0,2117.6,1.18158179]
[1770592380956,1.1,2118.8,2117.6,1.18158179]
[1770592381153,0.05243089,2118.6,2117.6,1.18158179]
[1770592381363,1.1,2118.8,2117.6,1.18158179]
[1770592382283,1.23250318,2118.6,2117.6,0.001]
[1770592382678,0.05243089,2118.4,2117.6,0.001]
[1770592382850,2.18931766,2118.6,2117.6,0.001]
[1770592383052,0.05243089,2118.6,2117.6,0.001]
[1770592383378,6.98996824,2118.7,2117.4,4.48066281]
[1770592383682,6.98996959,2118.7,2117.4,4.47691281]
[1770592383859,1.17994683,2118.8,2117.4,4.47691281]